bitfinex-derivatives/quotes_ETHF0:USTF0_20250107
["timestamp","ask_amount","ask_price","bid_price","bid_amount"]
[1736282034633,0.29522,3389.1,3388.9,1.64323]
[1736282034827,0.29522,3389.1,3388.9,1.348]
[1736282035027,0.29522,3389.1,3388.9,1.64324]
[1736282035230,0.29523,3389.0,3388.9,1.348]
[1736282035527,3.2078,3389.2,3388.9,1.348]
[1736282035730,0.29523,3389.1,3388.9,1.64324]
[1736282036224,0.29523,3389.1,3388.6,8.849]
[1736282036433,0.29523,3389.1,3388.9,0.29523]
[1736282037829,0.29524,3389.0,3388.8,0.29524]
[1736282038027,0.29524,3389.0,3388.7,1.348]
[1736282038228,0.29524,3389.0,3388.9,0.29524]
[1736282038731,0.29524,3388.9,3388.7,1.64325]
[1736282038930,3.9807,3388.8,3388.5,1.348]
[1736282039229,0.29526,3388.7,3387.3,3.51975659]
[1736282039423,0.29532,3388.0,3387.8,0.29533]
[1736282039634,3.2078,3388.1,3387.1,0.73848]
[1736282039826,0.29535,3387.7,3387.4,0.29537]
[1736282040028,0.7932,3387.9,3387.1,1.348]
[1736282040222,0.7932,3387.9,3387.4,0.29537]
[1736282040223,0.29535,3387.6,3387.4,0.29537]
[1736282040430,3.2078,3387.7,3387.1,1.348]
[1736282040628,3.50315,3387.7,3387.4,0.29536]
[1736282040831,0.29535,3387.6,3387.4,0.29536]
[1736282041028,3.2078,3387.7,3386.6,2.0866]
[1736282041329,3.2078,3387.2,3386.6,1.348]
[1736282041539,3.2078,3387.2,3387.0,0.2954]
[1736282041734,3.2078,3387.2,3386.6,1.348]
[1736282042133,3.50319,3387.2,3386.9,0.29541]
[1736282043029,3.2078,3387.2,3386.6,1.348]
[1736282043230,3.50319,3387.2,3386.6,1.348]
[1736282043443,3.2078,3387.2,3386.7,0.29543]
[1736282043746,3.2078,3387.2,3386.9,0.2954]
[1736282044027,3.50319,3387.2,3386.9,0.2954]
[1736282044233,3.2078,3387.2,3386.5,3.09028938]
[1736282044439,3.2078,3387.2,3386.3,1.55016]
[1736282044440,3.2078,3387.2,3386.6,1.349]
[1736282044635,3.2078,3386.8,3386.6,1.349]
[1736282044830,0.29543,3386.7,3386.6,1.349]
[1736282045032,0.29544,3386.6,3386.3,1.10696]
[1736282045241,0.29545,3386.5,3386.4,1.347]
[1736282045438,1.09525,3386.5,3386.4,1.347]
[1736282045639,0.7998,3386.5,3385.7,2.84750965]
[1736282045836,0.29547,3386.3,3385.9,0.29549]
[1736282046037,0.29547,3386.3,3385.7,2.84750965]
[1736282046038,3.2078,3386.0,3385.7,0.23913272]
[1736282046234,3.2078,3386.0,3385.6,1.347]
[1736282046435,3.5033,3386.0,3385.6,1.64252]
[1736282046734,0.29551,3385.9,3385.6,1.347]
[1736282046934,3.2078,3386.0,3385.6,1.347]
[1736282047139,0.29552,3385.7,3385.6,1.347]
[1736282047336,0.29551,3385.8,3385.6,1.347]
[1736282047539,0.29552,3385.7,3385.6,1.347]
[1736282047741,3.2078,3386.0,3385.6,1.347]
[1736282047935,0.29552,3385.7,3385.6,1.347]
[1736282048133,3.2078,3386.0,3385.0,2.0926]
[1736282048134,0.73876,3385.9,3385.0,2.0926]
[1736282048338,0.29558,3385.1,3384.7,0.2956]
[1736282048537,3.2078,3384.9,3384.7,0.2956]
[1736282048740,3.2078,3384.9,3384.3,1.347]
[1736282049040,3.2078,3384.9,3384.7,0.29559]
[1736282049248,3.2078,3384.9,3384.3,1.58276733]
[1736282049538,3.2078,3384.9,3384.7,0.29559]
[1736282049743,3.2078,3384.9,3384.3,1.58276733]
[1736282050035,0.7886,3385.6,3384.3,1.58276733]
[1736282050036,3.2078,3385.5,3384.9,0.73895]
[1736282050236,3.2078,3386.5,3385.5,0.29553]
[1736282050544,0.29545,3386.4,3386.0,0.29548]
[1736282050739,3.2078,3386.1,3385.4,2.84750965]
[1736282050939,3.2078,3386.1,3385.4,1.348]
[1736282051143,3.2078,3385.7,3385.5,0.29553]
[1736282051346,3.2078,3385.7,3385.4,1.348]
[1736282051835,0.29552,3385.5,3385.4,1.348]
[1736282052136,0.763,3385.6,3385.4,1.348]
[1736282052344,0.29549,3386.0,3385.6,0.29552]
[1736282052544,1.05849,3386.0,3385.6,0.29552]
[1736282052749,0.29549,3385.9,3385.6,0.29551]
[1736282052945,0.29551,3385.6,3385.5,1.348]
[1736282053146,3.2078,3385.8,3385.0,1.348]
[1736282053340,3.2078,3385.8,3385.0,4.19550965]
[1736282053541,3.2078,3385.8,3385.7,0.29551]
[1736282053748,3.2078,3385.8,3385.5,0.29552]
[1736282053941,3.5033,3385.8,3385.0,4.93441965]
[1736282054248,3.2078,3385.8,3385.5,0.29552]
[1736282054447,3.2078,3385.8,3384.8,3.2078]
[1736282054746,0.29552,3385.6,3385.1,1.348]
[1736282054942,0.29552,3385.6,3385.4,0.29553]
[1736282055945,3.2078,3385.8,3385.7,0.29551]
[1736282057044,3.2078,3386.3,3385.5,0.778]
[1736282057244,3.2078,3386.3,3386.2,0.29546]
[1736282057850,3.2078,3387.0,3386.9,0.2954]
[1736282058051,4.907,3387.7,3386.4,2.84750965]
[1736282058052,3.2078,3387.5,3386.4,2.84750965]
[1736282058348,3.2078,3387.1,3386.4,2.84750965]
[1736282058546,0.7457,3387.0,3386.9,0.2954]
[1736282059451,4.907,3387.3,3386.9,1.348]
[1736282059641,3.2078,3387.5,3387.4,0.29536]
[1736282060347,1.0678,3388.1,3387.2,2.84750965]
[1736282060547,0.7725,3388.1,3387.4,0.73841]
[1736282060748,3.2078,3387.8,3387.3,0.7489]
[1736282060945,3.2078,3387.8,3386.9,1.348]
[1736282060946,5.64534,3387.7,3386.9,1.348]
[1736282061143,0.29539,3387.1,3386.9,1.6434]
[1736282061344,3.2078,3387.4,3387.1,0.29538]
[1736282061345,0.29537,3387.3,3387.1,0.29538]
[1736282061550,3.2078,3387.4,3387.1,0.29538]
[1736282061757,3.2078,3387.4,3386.9,1.348]
[1736282061758,3.50317,3387.4,3387.3,0.29537]
[1736282061949,0.29537,3387.3,3387.1,0.29538]
[1736282062346,3.2078,3387.4,3386.9,1.348]
[1736282062552,3.2078,3387.4,3387.3,0.29537]
[1736282063052,0.29533,3387.7,3387.6,0.29534]
[1736282063253,0.29533,3387.8,3387.3,0.29537]
[1736282063554,3.2078,3387.9,3387.2,3.58595965]
[1736282063754,0.29533,3387.8,3387.7,0.29533]
[1736282063945,3.50312,3387.9,3387.8,0.29533]
[1736282064153,3.2078,3387.9,3387.8,0.29533]
[1736282064448,3.2078,3387.9,3387.3,0.778]
[1736282064649,0.29533,3387.8,3387.7,0.29533]
[1736282064852,0.29537,3387.3,3387.2,0.29537]
[1736282065051,0.29536,3387.4,3387.3,0.29536]
[1736282065252,3.50315,3387.5,3387.4,0.29536]
[1736282065658,3.2078,3387.5,3387.4,0.29536]
[1736282065957,3.2078,3387.5,3387.3,0.29536]
[1736282066147,0.29536,3387.4,3387.3,0.29536]
[1736282066743,3.2078,3387.5,3387.4,0.29536]
[1736282066949,3.50315,3387.5,3387.4,0.29536]
[1736282067152,0.29537,3387.4,3387.3,0.29537]
[1736282067558,3.2078,3387.5,3387.1,1.348]
[1736282067857,0.29536,3387.4,3387.3,0.29537]
[1736282068058,3.2078,3387.5,3387.4,0.29536]
[1736282068563,0.29536,3387.5,3387.4,0.29535]
[1736282069863,3.2078,3387.9,3387.1,1.348]
[1736282070054,0.29535,3387.6,3387.5,0.29535]
[1736282070560,0.29535,3387.6,3386.7,3.94636]
[1736282070561,2.84750965,3387.8,3385.9,3.2078]
[1736282070861,0.29542,3386.7,3386.6,0.29543]
[1736282071261,3.2078,3386.8,3386.4,2.84750965]
[1736282071455,0.2954,3387.0,3386.4,3.58613965]
[1736282071655,0.29539,3387.1,3386.8,0.29541]
[1736282071854,0.29542,3386.8,3386.7,0.29542]
[1736282072166,3.2078,3387.2,3386.4,2.84750965]
[1736282072356,4.907,3387.3,3386.9,2.84750965]
[1736282072559,3.2078,3388.1,3387.5,0.29535]
[1736282072761,3.2078,3388.1,3388.0,0.2953]
[1736282073160,2.2807467,3388.2,3388.1,0.2953]
[1736282073468,3.2078,3388.7,3388.0,0.7895]
[1736282073670,3.2078,3388.7,3388.6,0.29526]
[1736282074265,3.2078,3388.7,3388.4,1.348]
[1736282074461,3.2078,3388.7,3388.6,0.29526]
[1736282075059,3.50305,3388.7,3388.5,0.29526]
[1736282075270,3.2078,3388.7,3388.5,0.29526]
[1736282075565,3.2078,3388.7,3388.6,0.29526]
[1736282077168,3.2078,3389.0,3388.8,0.29523]
[1736282077964,3.2078,3389.0,3388.9,0.29523]
[1736282078262,3.2078,3389.4,3389.2,0.2952]
[1736282078464,3.2078,3389.4,3389.3,0.2952]
[1736282078666,3.2078,3389.4,3389.3,1.0705]
[1736282079361,3.2078,3389.4,3389.2,1.346]
[1736282079565,3.2078,3389.4,3389.2,1.6412]
[1736282079757,3.2078,3390.0,3389.2,1.346]
[1736282079956,3.2078,3389.6,3389.2,1.346]
[1736282080167,3.2078,3390.0,3389.2,1.346]
[1736282080467,0.29516,3389.7,3389.5,0.29517]
[1736282080657,0.29517,3389.6,3389.4,0.29518]
[1736282080860,3.2078,3389.6,3389.2,1.346]
[1736282081070,0.2952,3389.3,3389.2,1.6412]
[1736282081369,0.29519,3389.4,3389.2,1.6412]
[1736282081661,0.29519,3389.4,3389.3,0.2952]
[1736282081862,0.7482,3389.5,3389.2,1.346]
[1736282081863,0.2952,3389.3,3389.2,1.346]
[1736282082372,0.29519,3389.4,3389.2,1.6412]
[1736282082568,0.2952,3389.3,3389.2,1.6412]
[1736282082772,0.29519,3389.4,3389.2,1.6412]
[1736282082968,0.7482,3389.5,3389.2,1.346]
[1736282083367,0.7482,3389.5,3389.3,0.29519]
[1736282083673,0.2952,3389.3,3389.2,1.346]
[1736282083873,0.2952,3389.3,3389.2,1.6412]
[1736282085470,1.4982,3389.5,3389.2,1.346]
[1736282085966,0.29519,3389.3,3389.2,1.346]
[1736282086171,0.29519,3389.3,3389.2,1.6412]
[1736282086676,1.4982,3389.5,3388.9,1.345]
[1736282086975,0.29524,3388.8,3388.7,0.29524]
[1736282087474,0.29525,3388.7,3388.6,0.29525]
[1736282087779,3.2078,3389.1,3388.5,4.84806]
[1736282087780,0.29526,3388.6,3388.5,4.84806]
[1736282088776,0.29526,3388.6,3388.5,1.345]
[1736282089380,3.50305,3388.7,3388.6,0.29526]
[1736282089777,3.50305,3388.7,3388.5,1.345]
[1736282089778,0.29526,3388.6,3388.5,1.64026]
[1736282090171,0.29526,3388.6,3388.5,0.29526]
[1736282090383,0.29526,3388.6,3388.5,1.64026]
[1736282090684,0.29528,3388.4,3388.3,1.345]
[1736282093183,0.7449,3388.6,3388.3,1.345]
[1736282093184,3.2078,3389.2,3389.1,0.29521]
[1736282093483,0.7547,3389.7,3389.1,1.345]
[1736282093982,0.29519,3389.3,3389.2,0.2952]
[1736282094186,0.29519,3389.3,3389.1,1.345]
[1736282094187,0.2952,3389.2,3389.1,1.64021]
[1736282094380,3.2078,3389.5,3389.1,1.345]
[1736282094580,0.2952,3389.3,3389.2,0.2952]
[1736282094783,3.2078,3389.5,3389.1,1.345]
[1736282094977,3.2078,3389.5,3388.9,1.345]
[1736282095484,0.29522,3389.1,3389.0,0.29522]
[1736282095884,3.2078,3389.1,3389.0,0.29522]
[1736282096185,0.7547,3389.7,3388.9,1.345]
[1736282096186,3.2078,3389.5,3388.9,1.345]
[1736282096380,0.2952,3389.3,3389.2,0.2952]
[1736282096579,3.2078,3389.5,3388.9,1.345]
[1736282096785,0.29521,3389.2,3389.1,0.29521]
[1736282097285,0.29525,3388.7,3388.6,0.29525]
[1736282097484,0.29524,3388.8,3388.7,0.29524]
[1736282097884,0.29524,3388.8,3388.6,0.29525]
[1736282098085,0.29524,3388.8,3388.5,1.345]
[1736282098278,0.7222,3388.9,3388.7,0.29525]
[1736282098484,0.7222,3388.9,3388.6,0.29525]
[1736282098692,0.29524,3388.8,3388.6,0.29525]
[1736282099486,0.7222,3388.9,3388.6,0.29525]
[1736282099682,0.7222,3388.9,3388.5,1.345]
[1736282099882,0.29525,3388.7,3388.6,0.29525]
[1736282100091,0.29524,3388.8,3388.7,0.29524]
[1736282100282,0.29526,3388.7,3388.6,0.29525]
[1736282100592,0.7222,3388.9,3388.5,1.345]
[1736282100891,0.29525,3388.7,3388.6,0.29525]
[1736282101388,0.7222,3388.9,3388.1,0.7519]
[1736282101583,0.29528,3388.4,3388.3,0.29528]
[1736282101986,3.2078,3388.6,3388.2,2.08322]
[1736282102187,3.2078,3389.1,3388.9,0.29523]
[1736282102385,2.2807467,3389.0,3388.9,0.29523]
[1736282103389,3.2078,3389.1,3388.6,1.48343]
[1736282103589,3.2078,3389.1,3388.3,3.2078]
[1736282103789,3.2078,3389.1,3388.4,1.345]
[1736282103992,3.2078,3388.7,3388.4,1.345]
[1736282104287,3.2078,3389.2,3388.4,1.345]
[1736282104492,0.29523,3389.0,3388.9,0.29523]
[1736282104787,2.5759767,3388.9,3388.8,0.29524]
[1736282105784,2.2807467,3388.9,3388.4,1.345]
[1736282105986,0.29526,3388.6,3388.4,1.64027]
[1736282106288,3.2078,3388.8,3388.1,0.7519]
[1736282106485,5.4885467,3389.1,3388.2,1.343]
[1736282106689,5.4885467,3389.1,3389.0,0.29522]
[1736282106893,2.2807467,3389.1,3389.0,1.63822]
[1736282107092,0.4758867,3389.1,3389.0,6.63822]
[1736282107294,8.61e-06,3389.1,3389.0,6.63822]
[1736282108191,8.61e-06,3389.1,3389.0,1.63822]
[1736282108886,3.61065895,3389.3,3389.2,0.2952]
[1736282109191,3.46113638,3390.3,3390.2,0.29512]
[1736282109496,3.46113638,3390.3,3390.2,1.63812]
[1736282109997,3.75624638,3390.3,3390.2,1.343]
[1736282110593,0.29511,3390.3,3390.2,1.343]
[1736282110793,1.03331,3390.3,3390.2,1.343]
[1736282112090,1.03331,3390.3,3390.2,1.63812]
[1736282112397,0.29511,3390.3,3390.2,1.63812]
[1736282112584,0.29511,3390.3,3390.2,1.343]
[1736282113893,0.29519,3389.4,3389.2,4.5508]
[1736282114094,0.73781,3390.2,3389.3,0.29519]
[1736282114095,0.29518,3389.5,3389.3,0.29519]
[1736282114295,0.7112,3389.4,3389.3,0.29519]
[1736282114902,0.7112,3389.4,3389.2,4.846]
[1736282115097,0.7112,3389.4,3389.3,0.2952]
[1736282115302,3.2078,3389.7,3389.2,4.5508]
[1736282115498,3.50296,3389.7,3389.5,0.29518]
[1736282115796,3.50296,3389.7,3389.2,4.5508]
[1736282115997,0.29516,3389.7,3389.5,0.29517]
[1736282116394,0.29516,3389.7,3389.4,0.29518]
[1736282116597,0.29516,3389.7,3389.5,0.29518]
[1736282116897,0.29516,3389.7,3389.4,0.29518]
[1736282117097,0.29516,3389.7,3389.5,0.29518]
[1736282117700,0.29519,3389.4,3389.2,1.6382]
[1736282117904,3.2078,3389.3,3388.9,1.343]
[1736282118099,0.29522,3389.1,3388.9,1.63823]
[1736282118394,0.7321,3389.0,3388.9,1.63823]
[1736282118601,1.02732,3389.0,3388.9,1.343]
[1736282119001,0.7321,3389.0,3388.9,1.63823]
[1736282119392,3.46113638,3389.3,3388.9,4.19050965]
[1736282119600,3.46113638,3389.3,3389.2,0.2952]
[1736282119795,3.46113638,3389.3,3388.9,1.343]
[1736282119992,3.46113638,3389.3,3389.2,0.2952]
[1736282120397,0.29519,3389.4,3389.2,0.2952]
[1736282120603,1.02728,3389.5,3389.2,0.2952]
[1736282121106,1.02728,3389.5,3389.3,0.29519]
[1736282121303,0.7321,3389.5,3389.4,0.29519]
[1736282124301,6.67953927,3389.7,3389.3,2.84750965]
[1736282124507,3.47173927,3389.7,3389.6,0.29517]
[1736282126000,3.47173927,3389.7,3389.3,3.2078]
[1736282126203,3.47173927,3389.7,3389.5,0.29518]
[1736282126204,0.7564,3389.6,3389.5,0.29518]
[1736282126403,0.7564,3389.6,3389.5,1.63818]
[1736282126604,1.4556,3389.6,3389.5,1.63818]
[1736282127207,1.75077,3389.6,3389.5,1.63818]
[1736282127415,1.4556,3389.6,3389.5,1.63818]
[1736282128318,2.47687,3389.6,3389.5,1.343]
[1736282128611,2.47687,3389.6,3388.7,0.73811]
[1736282128612,0.2952,3389.3,3389.1,1.63821]
[1736282128818,0.2952,3389.2,3389.1,0.29521]
[1736282129206,0.2952,3389.2,3388.4,3.11629741]
[1736282129207,3.2078,3389.3,3388.2,5.34778617]
[1736282129402,0.29523,3389.0,3388.4,0.29527]
[1736282129608,3.2078,3389.3,3388.5,3.2078]
[1736282129807,2.62463127,3389.6,3388.8,0.7381]
[1736282130113,0.29521,3389.2,3388.9,0.29522]
[1736282130319,0.2952,3389.3,3389.1,0.29521]
[1736282130607,2.62463127,3389.6,3388.5,3.2078]
[1736282130608,3.91044513,3389.2,3388.5,3.2078]
[1736282130812,3.91044513,3389.2,3389.1,0.29521]
[1736282131903,0.2952,3389.3,3389.2,0.2952]
[1736282131904,3.46751386,3389.3,3389.2,0.2952]
[1736282132216,3.76270386,3389.3,3389.1,0.2952]
[1736282132416,3.46751386,3389.3,3389.2,0.2952]
[1736282132713,3.46751386,3389.3,3389.2,1.6382]
[1736282132912,6.97050386,3389.3,3389.2,1.343]
[1736282133308,3.2078,3389.3,3389.2,1.343]
[1736282133610,3.2078,3389.3,3389.2,1.6382]
[1736282134409,3.50299,3389.3,3389.2,1.6382]
[1736282134609,3.50299,3389.3,3389.2,1.343]
[1736282134808,6.67531386,3389.3,3388.5,3.2078]
[1736282135015,0.29526,3388.6,3388.5,0.29526]
[1736282135315,3.2078,3388.7,3388.6,0.29526]
[1736282136017,8.37451386,3389.3,3388.4,3.71912741]
[1736282136018,3.46751386,3388.8,3388.7,0.29525]
[1736282136317,3.46751386,3388.8,3388.7,2.67337741]
[1736282136907,3.46751386,3389.3,3389.2,0.2952]
[1736282137114,3.46751386,3389.3,3389.2,1.6362]
[1736282138112,3.76270386,3389.3,3389.2,1.341]
[1736282138419,0.29519,3389.3,3389.2,1.341]
[1736282138820,0.44295105,3389.5,3388.4,2.37812741]
[1736282139015,3.2078,3389.0,3388.9,0.29522]
[1736282139215,3.2078,3389.0,3388.5,1.341]
[1736282139517,0.7327,3388.9,3388.8,0.29524]
[1736282139817,0.7327,3388.9,3387.8,9.29247666]
[1736282140119,3.2078,3388.1,3388.0,6.24587617]
[1736282140621,3.2078,3388.1,3388.0,4.60956617]
[1736282140622,3.5031,3388.1,3388.0,4.60956617]
[1736282140919,3.5031,3388.1,3387.5,0.7129]
[1736282140920,0.29535,3387.6,3387.4,1.63636]
[1736282141111,1.4227,3388.0,3387.4,1.341]
[1736282141310,1.4227,3388.0,3387.3,4.60956617]
[1736282141311,0.29536,3387.4,3387.3,4.60956617]
[1736282141917,5.6953,3387.4,3387.2,4.95571542]
[1736282142119,0.29543,3386.6,3386.4,0.29544]
[1736282142418,0.29545,3386.5,3386.3,0.29546]
[1736282142613,0.29545,3386.4,3386.3,0.29546]
[1736282142813,0.29546,3386.3,3386.2,4.6305832]
[1736282143012,0.29546,3386.3,3386.2,1.1483832]
[1736282143215,0.29546,3386.3,3385.9,9.21913234]
[1736282143216,0.29548,3386.0,3385.9,7.70866834]
[1736282143408,5.88140741,3386.0,3385.9,7.70866834]
[1736282143613,5.88140741,3386.0,3384.7,20.7430477]
[1736282143614,4.907,3385.6,3384.3,7.10816834]
[1736282143807,3.2078,3384.8,3384.3,7.10816834]
[1736282144011,0.29561,3384.6,3384.3,7.40379834]
[1736282144919,0.29561,3384.6,3384.3,7.10816834]
[1736282145119,0.29561,3384.6,3384.3,7.40379834]
[1736282145415,0.29561,3384.6,3384.1,1.342]
[1736282145724,6.66463468,3384.8,3384.6,0.2956]
[1736282146018,3.70518979,3385.5,3385.4,0.29553]
[1736282146217,4.00071979,3385.5,3385.2,0.29555]
[1736282146415,3.70518979,3385.5,3385.3,0.29554]
[1736282146616,3.70518979,3385.5,3385.1,1.342]
[1736282146925,0.29553,3385.5,3385.2,0.29555]
[1736282147116,0.29554,3385.4,3385.1,0.29556]
[1736282147318,0.29553,3385.5,3385.0,0.29557]
[1736282147517,3.2078,3385.6,3385.0,0.29557]
[1736282147821,0.29551,3385.7,3385.0,0.29557]
[1736282148120,0.29551,3385.8,3385.4,0.29553]
[1736282148422,3.2078,3386.0,3385.4,0.29553]
[1736282148616,0.29551,3385.7,3385.3,0.29554]
[1736282148923,0.29551,3385.7,3385.4,0.29553]
[1736282149126,3.2078,3386.0,3384.9,1.342]
[1736282149419,0.29553,3385.5,3385.2,0.29555]
[1736282149613,3.2078,3386.0,3385.2,3.2078]
[1736282149812,3.2078,3386.0,3385.9,3.14767814]
[1736282150115,3.2078,3386.9,3385.9,4.19418814]
[1736282150322,0.29545,3386.4,3386.2,0.29546]
[1736282150519,0.29547,3386.2,3385.9,1.63749]
[1736282150721,0.29547,3386.2,3386.0,0.29548]
[1736282151015,0.73852,3386.9,3385.9,1.342]
[1736282151216,3.2078,3386.6,3385.9,1.342]
[1736282151423,0.29548,3386.0,3385.9,1.342]
[1736282151716,0.29553,3385.5,3385.2,0.29555]
[1736282151913,0.29551,3385.7,3385.4,0.29553]
[1736282152113,0.2955,3385.8,3385.5,0.29552]
[1736282152313,4.907,3386.0,3385.0,6.05998814]
[1736282152612,0.2955,3385.9,3385.6,0.29551]
[1736282152813,0.2955,3385.9,3385.4,3.2078]
[1736282153019,3.2078,3385.9,3385.4,3.2078]
[1736282153423,0.29553,3385.5,3385.4,3.2078]
[1736282153618,4.907,3385.8,3385.0,3.2078]
[1736282153917,0.29555,3385.3,3385.0,3.2078]
[1736282154120,0.29555,3385.3,3385.1,0.29556]
[1736282154320,0.29554,3385.4,3385.1,0.29556]
[1736282154514,0.2956,3384.7,3384.6,3.2078]
[1736282154919,0.2956,3384.7,3383.8,2.0878]
[1736282154920,0.2956,3384.7,3384.2,0.29564]
[1736282155122,6.05998814,3385.1,3384.1,3.2078]
[1736282155422,3.2078,3385.1,3384.1,3.2078]
[1736282155626,0.2956,3384.7,3384.1,3.2078]
[1736282155819,0.29561,3384.6,3384.4,0.29562]
[1736282156120,0.73883,3385.5,3384.4,2.85218814]
[1736282156316,4.907,3385.6,3384.4,2.85218814]
[1736282156517,0.29559,3384.8,3384.6,0.2956]
[1736282156916,3.2078,3386.1,3384.7,6.05998814]
[1736282157223,0.29549,3386.0,3385.8,0.2955]
[1736282157423,3.2078,3386.1,3385.8,0.2955]
[1736282157424,3.50328,3386.1,3385.8,0.2955]
[1736282157622,3.50328,3386.1,3385.9,0.29549]
[1736282157823,3.2078,3386.1,3386.0,0.29548]
[1736282158131,3.2078,3386.1,3385.7,1.343]
[1736282158522,3.2078,3386.1,3385.9,0.29549]
[1736282158723,3.50328,3386.1,3385.9,0.29549]
[1736282158925,3.2078,3386.1,3385.7,1.343]
[1736282159223,3.2078,3386.1,3385.6,1.63851]
[1736282159224,0.2955,3385.8,3385.6,1.63851]
[1736282159420,0.29552,3385.6,3385.5,3.2078]
[1736282159627,0.73875,3385.9,3385.0,3.50336]
[1736282159939,0.73872,3386.0,3385.0,3.50336]
[1736282160225,0.29555,3385.3,3385.1,0.29556]
[1736282160422,0.73876,3385.8,3385.0,3.2078]
[1736282160623,4.907,3385.9,3385.0,3.2078]
[1736282160925,3.2078,3386.1,3385.5,3.2078]
[1736282161124,3.2078,3386.1,3385.6,1.343]
[1736282161425,0.29548,3386.0,3385.8,0.2955]
[1736282161622,1.0342,3386.0,3385.3,0.29554]
[1736282161926,0.29554,3385.4,3385.3,0.29554]
[1736282162123,0.29551,3385.7,3385.5,0.29552]
[1736282162620,3.2078,3386.1,3385.1,1.343]
[1736282162826,0.29553,3385.6,3385.4,0.29553]
[1736282163026,3.94649,3386.1,3385.2,1.343]
[1736282163227,0.2955,3385.8,3385.3,0.29554]
[1736282163435,3.2078,3386.1,3385.6,0.29551]
[1736282163622,0.29551,3385.7,3385.6,0.29552]
[1736282164628,3.2078,3386.1,3385.8,0.2955]
[1736282164629,0.2955,3385.9,3385.8,0.2955]
[1736282164824,8.1148,3386.1,3385.7,0.2955]
[1736282165030,8.1148,3386.1,3385.2,1.343]
[1736282165226,0.29551,3385.8,3385.2,1.343]
[1736282165430,0.29551,3385.8,3385.7,0.29551]
[1736282165638,8.8535,3386.1,3385.2,1.343]
[1736282165929,0.29551,3385.8,3385.2,1.343]
[1736282166224,8.1148,3386.1,3385.4,2.85218814]
[1736282166425,8.1148,3386.1,3385.4,6.05998814]
[1736282166627,0.29549,3385.9,3385.8,0.2955]
[1736282166929,0.29548,3386.0,3385.9,0.29548]
[1736282167130,8.1148,3386.1,3385.4,6.05998814]
[1736282167431,3.2078,3386.1,3386.0,0.29548]
[1736282167623,3.2078,3386.1,3385.4,6.05998814]
[1736282167822,5.64572,3386.0,3385.1,1.341]
[1736282168132,0.29555,3385.2,3385.1,1.341]
[1736282168326,4.907,3386.0,3385.1,1.341]
[1736282168828,0.29551,3385.7,3385.6,0.29551]
[1736282169023,3.2078,3386.1,3385.4,6.05998814]
[1736282169234,0.29551,3385.8,3385.7,0.29551]
[1736282169728,0.29549,3386.0,3385.9,0.29549]
[1736282170426,8.1148,3386.5,3385.9,4.19318814]
[1736282170622,5.64554,3386.9,3385.9,4.86277473]
[1736282170824,0.29544,3386.6,3386.5,0.29544]
[1736282171025,3.2078,3387.0,3386.3,2.85218814]
[1736282171229,0.29542,3386.8,3386.7,0.29542]
[1736282171630,0.29545,3386.5,3386.4,0.29544]
[1736282172530,0.29543,3386.7,3386.6,0.29542]
[1736282172829,3.2078,3386.7,3386.1,0.6965]
[1736282173033,0.29544,3386.6,3386.5,0.29543]
[1736282173225,0.29545,3386.5,3386.4,0.29544]
[1736282173729,5.64545,3387.3,3386.6,0.29542]
[1736282173730,3.8967,3387.2,3386.6,0.29542]
[1736282174029,0.29539,3387.1,3387.0,0.29539]
[1736282174236,3.50319,3387.2,3387.1,0.29539]
[1736282174432,3.2078,3387.2,3386.7,1.341]
[1736282174634,0.2954,3387.1,3387.0,0.29539]
[1736282175329,3.2078,3387.2,3386.8,0.7099]
[1736282175533,0.29537,3387.4,3387.3,0.29536]
[1736282175731,0.29538,3387.2,3387.1,0.29539]
[1736282176334,0.2954,3387.0,3386.9,0.2954]
[1736282176536,0.29539,3387.1,3387.0,0.29539]
[1736282176741,3.2078,3387.5,3386.8,0.7099]
[1736282177037,0.2954,3387.0,3386.9,0.2954]
[1736282177437,0.2954,3386.9,3386.8,1.00531]
[1736282177635,0.29544,3386.6,3386.5,0.29544]
[1736282177833,0.29544,3386.5,3386.4,3.2078]
[1736282178440,3.2078,3387.0,3386.2,4.19318814]
[1736282178640,0.29544,3386.5,3386.4,0.29545]
[1736282178835,0.29544,3386.6,3386.4,0.29545]
[1736282179038,3.2078,3387.4,3386.8,0.29541]
[1736282179231,3.2078,3387.4,3386.7,2.85218814]
[1736282179440,0.2954,3387.0,3386.8,0.29541]
[1736282179737,0.29541,3386.9,3386.8,0.29541]
[1736282180138,0.29541,3386.9,3386.7,4.19318814]
[1736282180139,3.2078,3387.4,3386.7,4.19318814]
[1736282180334,3.2078,3387.4,3386.7,1.341]
[1736282180335,0.29541,3386.8,3386.7,1.341]
[1736282180536,0.29541,3386.8,3386.1,1.3862]
[1736282180537,3.2078,3386.8,3386.1,1.3862]
[1736282180741,0.29548,3386.0,3385.9,3.50328]
[1736282180941,4.907,3386.6,3385.9,3.2078]
[1736282181143,0.29547,3386.2,3386.1,0.29547]
[1736282181536,4.907,3386.6,3385.9,3.2078]
[1736282181737,0.29547,3386.2,3386.1,0.29547]
[1736282182138,0.29548,3386.1,3386.0,0.29548]
[1736282182539,4.907,3386.6,3385.9,3.2078]
[1736282182846,4.907,3386.6,3385.9,6.05998814]
[1736282183049,4.907,3386.6,3386.3,0.29545]